fUST/lending_fUST_20250713
["ID","MTS","AMOUNT","RATE_DAILY","PERIOD"]
[371604976,1752365457882,-249.46,0.00019452,2]
[371604977,1752365457892,-151.0,0.00019452,2]
[371604978,1752365457902,-460.0,0.00019452,2]
[371604979,1752365457912,-151.0,0.00019452,2]
[371604980,1752365457922,-151.0,0.00019452,2]
[371604981,1752365457932,-1563.14,0.00019452,2]
[371604982,1752365457943,-460.0,0.00019452,2]
[371604983,1752365457953,-460.0,0.00019452,2]
[371604984,1752365457963,-215.69,0.00019452,2]
[371604985,1752365457972,-460.0,0.00019452,2]
[371604986,1752365457983,-460.0,0.00019452,2]
[371604987,1752365457993,-460.0,0.00019452,2]
[371604988,1752365458003,-596.31,0.00019452,2]
[371604989,1752365458012,-460.0,0.00019452,2]
[371604990,1752365458022,-1263.83,0.00019452,2]
[371604991,1752365458033,-730.78,0.00019452,2]
[371604992,1752365458042,-460.0,0.00019452,2]
[371604993,1752365458055,-460.0,0.00019452,2]
[371604994,1752365458066,-460.0,0.00019452,2]
[371604995,1752365458076,-460.0,0.00019452,2]
[371604996,1752365458086,-563.45,0.00019452,2]
[371604997,1752365458096,-189.07,0.00019452,2]
[371604998,1752365458106,-682.9,0.00019452,2]
[371604999,1752365458116,-460.0,0.00019452,2]
[371605000,1752365458126,-460.0,0.00019452,2]
[371605001,1752365458137,-460.0,0.00019452,2]
[371605002,1752365458146,-460.0,0.00019452,2]
[371605003,1752365458157,-1086.33,0.00019452,2]
[371605004,1752365458167,-460.0,0.00019452,2]
[371605005,1752365458177,-460.0,0.00019452,2]
[371605006,1752365458187,-533.34,0.00019452,2]
[371605007,1752365458198,-460.0,0.00019452,2]
[371605008,1752365458208,-460.0,0.00019452,2]
[371605009,1752365458219,-460.0,0.00019452,2]
[371605010,1752365458228,-460.0,0.00019452,2]
[371605011,1752365458238,-460.0,0.00019452,2]
[371605012,1752365458248,-587.0,0.00019631,2]
[371605013,1752365458258,-540.68701618,0.00019693,2]
[371605014,1752365458268,-4791.70635194,0.00019721,2]
[371605015,1752365458279,-583.6,0.00019726,2]
[371605016,1752365458288,-460.0,0.00019726,2]
[371605017,1752365458298,-460.0,0.00019726,2]
[371605018,1752365458308,-460.0,0.00019726,2]
[371605019,1752365458318,-460.0,0.00019726,2]
[371605020,1752365458328,-460.0,0.00019726,2]
[371605021,1752365458338,-460.0,0.00019726,2]
[371605022,1752365458347,-460.0,0.00019726,2]
[371605023,1752365458358,-1563.14,0.00019726,2]
[371605024,1752365458368,-227.97,0.00019726,2]
[371605025,1752365458378,-460.0,0.00019726,2]
[371605026,1752365458389,-461.4,0.00019726,2]
[371605027,1752365458399,-173.22,0.00019726,2]
[371605028,1752365458409,-542.83,0.00019726,2]
[371605029,1752365458418,-460.0,0.00019726,2]
[371605030,1752365458428,-1263.83,0.00019726,2]
[371605031,1752365458438,-730.78,0.00019726,2]
[371605032,1752365458449,-513.03,0.00019726,2]
[371605033,1752365458459,-460.0,0.00019726,2]
[371605034,1752365458469,-460.0,0.00019726,2]
[371605035,1752365458479,-563.45,0.00019726,2]
[371605036,1752365458489,-682.9,0.00019726,2]
[371605037,1752365458498,-460.0,0.00019726,2]
[371605038,1752365458506,-460.0,0.00019726,2]
[371605039,1752365458516,-460.0,0.00019726,2]
[371605040,1752365458526,-213.00705976,0.00019726,2]
[371605041,1752365458535,-1086.33,0.00019726,2]
[371605042,1752365458545,-460.0,0.00019726,2]
[371605043,1752365458554,-460.0,0.00019726,2]
[371605044,1752365458563,-533.34,0.00019726,2]
[371605045,1752365458572,-232.31,0.00019726,2]
[371605046,1752365458581,-460.0,0.00019726,2]
[371605047,1752365458590,-460.0,0.00019726,2]
[371605048,1752365458600,-460.0,0.00019726,2]
[371605049,1752365458609,-151.0,0.00019726,2]
[371605050,1752365458618,-460.0,0.0002,2]
[371605051,1752365458627,-293.8,0.0002,2]
[371605052,1752365458636,-460.0,0.0002,2]
[371605053,1752365458646,-428.66,0.0002,2]
[371605054,1752365458655,-460.0,0.0002,2]
[371605055,1752365458664,-460.0,0.0002,2]
[371605056,1752365458674,-460.0,0.0002,2]
[371605057,1752365458683,-1563.14,0.0002,2]
[371605058,1752365458693,-460.0,0.0002,2]
[371605059,1752365458702,-460.0,0.0002,2]
[371605060,1752365458711,-1263.83,0.0002,2]
[371605061,1752365458720,-730.78,0.0002,2]
[371605062,1752365458729,-460.0,0.0002,2]
[371605063,1752365458738,-460.0,0.0002,2]
[371605064,1752365458747,-563.45,0.0002,2]
[371605065,1752365458756,-682.9,0.0002,2]
[371605066,1752365458765,-460.0,0.0002,2]
[371605067,1752365458774,-460.0,0.0002,2]
[371605068,1752365458783,-412.96,0.0002,2]
[371605069,1752365458792,-1086.33,0.0002,2]
[371605070,1752365458801,-460.0,0.0002,2]
[371605071,1752365458810,-460.0,0.0002,2]
[371605072,1752365458819,-533.34,0.0002,2]
[371605073,1752365458829,-460.0,0.0002,2]
[371605074,1752365458838,-356.86,0.0002,2]
[371605075,1752365458846,-460.0,0.0002,2]
[371605076,1752365458855,-540.68701618,0.00020003,2]
[371605077,1752365458865,-192.813577,0.00020187,2]
[371605078,1752365458874,-460.0,0.00020273,2]
[371605079,1752365458883,-460.0,0.00020273,2]
[371605080,1752365458892,-460.0,0.00020273,2]
[371605081,1752365458901,-460.0,0.00020273,2]
[371605082,1752365458910,-460.0,0.00020273,2]
[371605083,1752365458919,-1563.14,0.00020273,2]
[371605084,1752365458930,-460.0,0.00020273,2]
[371605085,1752365458939,-460.0,0.00020273,2]
[371605086,1752365458950,-1263.83,0.00020273,2]
[371605087,1752365458964,-730.78,0.00020273,2]
[371605088,1752365458973,-460.0,0.00020273,2]
[371605089,1752365458982,-460.0,0.00020273,2]
[371605090,1752365458992,-563.45,0.00020273,2]
[371605091,1752365459002,-682.9,0.00020273,2]
[371605092,1752365459012,-460.0,0.00020273,2]
[371605093,1752365459022,-460.0,0.00020273,2]
[371605094,1752365459032,-1086.33,0.00020273,2]
[371605095,1752365459042,-460.0,0.00020273,2]
[371605096,1752365459052,-460.0,0.00020273,2]
[371605097,1752365459161,-533.34,0.00020273,2]
[371605098,1752365459171,-180.01,0.00020273,2]
[371605099,1752365459181,-540.68701618,0.00020314,3]
[371605100,1752365459191,-475.93,0.00020547,2]
[371605101,1752365459200,-460.0,0.00020547,2]
[371605102,1752365459210,-179.03,0.00020547,2]
[371605103,1752365459219,-540.45650576,0.00020547,2]
[371605104,1752365459229,-1563.14,0.00020547,2]
[371605105,1752365459238,-460.0,0.00020547,2]
[371605106,1752365459247,-460.0,0.00020547,2]
[371605107,1752365459256,-1263.83,0.00020547,2]
[371605108,1752365459265,-730.78,0.00020547,2]
[371605109,1752365459275,-460.0,0.00020547,2]
[371605110,1752365459284,-194.79,0.00020547,2]
[371605111,1752365459294,-563.45,0.00020547,2]
[371605112,1752365459303,-682.9,0.00020547,2]
[371605113,1752365459313,-460.0,0.00020547,2]
[371605114,1752365459322,-248.51,0.00020547,2]
[371605115,1752365459332,-1086.33,0.00020547,2]
[371605116,1752365459342,-460.0,0.00020547,2]
[371605117,1752365459352,-460.0,0.00020547,2]
[371605118,1752365459361,-533.34,0.00020547,2]
[371605119,1752365459371,-2256.14936259,0.00020557,2]
[371605120,1752365459380,-1000.0,0.00020557,2]
[371605121,1752365459390,-207.4,0.00020557,2]
[371605122,1752365459399,-151.0,0.00020557,2]
[371605123,1752365459409,-151.0,0.00020557,2]
[371605124,1752365459418,-151.0,0.00020557,2]
[371605125,1752365459428,-151.0,0.00020557,2]
[371605126,1752365459437,-151.0,0.00020557,2]
[371605127,1752365459447,-151.0,0.00020557,2]
[371605128,1752365459457,-151.0,0.00020557,2]
[371605129,1752365459466,-151.0,0.00020557,2]
[371605130,1752365459476,-151.0,0.00020557,2]
[371605131,1752365459486,-151.0,0.00020557,2]
[371605132,1752365459495,-151.0,0.00020557,2]
[371605133,1752365459505,-151.0,0.00020557,2]
[371605134,1752365459515,-151.0,0.00020557,2]
[371605135,1752365459524,-540.68701618,0.00020624,3]
[371605136,1752365459534,-422.975,0.00020654,2]
[371605137,1752365459543,-246.13,0.00020821,2]
[371605138,1752365459553,-1563.14,0.00020821,2]
[371605139,1752365459563,-460.0,0.00020821,2]
[371605140,1752365459573,-460.0,0.00020821,2]
[371605141,1752365459584,-1263.83,0.00020821,2]
[371605142,1752365459594,-730.78,0.00020821,2]
[371605143,1752365459604,-460.0,0.00020821,2]
[371605144,1752365459615,-563.45,0.00020821,2]
[371605145,1752365459625,-682.9,0.00020821,2]
[371605146,1752365459635,-460.0,0.00020821,2]
[371605147,1752365459646,-1086.33,0.00020821,2]
[371605148,1752365459656,-460.0,0.00020821,2]
[371605149,1752365459667,-460.0,0.00020821,2]
[371605150,1752365459679,-533.34,0.00020821,2]
[371605151,1752365459689,-1911.20158,0.00020843,2]
[371605152,1752365459699,-272.0,0.000209,2]
[371605153,1752365459709,-776.05,0.000209,2]
[371605154,1752365459718,-153.076984,0.00020911,2]
[371605155,1752365459728,-540.68701618,0.00020934,4]
[371605156,1752365459738,-8222.21,0.00021,2]
[371605157,1752365459748,-1563.14,0.00021095,2]
[371605158,1752365459758,-460.0,0.00021095,2]
[371605159,1752365459767,-460.0,0.00021095,2]
[371605160,1752365459778,-1263.83,0.00021095,2]
[371605161,1752365459787,-730.78,0.00021095,2]
[371605162,1752365459796,-556.28,0.00021095,2]
[371605163,1752365459807,-563.45,0.00021095,2]
[371605164,1752365459816,-682.9,0.00021095,2]
[371605165,1752365459825,-460.0,0.00021095,2]
[371605166,1752365459835,-1086.33,0.00021095,2]
[371605167,1752365459845,-460.0,0.00021095,2]
[371605168,1752365459855,-492.07,0.00021095,2]
[371605169,1752365459865,-533.34,0.00021095,2]
[371605170,1752365459875,-540.68701618,0.00021245,4]
[371605171,1752365459885,-1563.14,0.00021369,2]
[371605172,1752365459896,-606.92,0.00021369,2]
[371605173,1752365459907,-496.57,0.00021369,2]
[371605174,1752365459919,-1263.83,0.00021369,2]
[371605175,1752365459930,-730.78,0.00021369,2]
[371605176,1752365459941,-563.45,0.00021369,2]
[371605177,1752365459951,-682.9,0.00021369,2]
[371605178,1752365459960,-460.0,0.00021369,2]
[371605179,1752365459970,-1086.33,0.00021369,2]
[371605180,1752365459982,-460.0,0.00021369,2]
[371605181,1752365459993,-533.34,0.00021369,2]
[371605182,1752365460003,-289.292776,0.00021477,4]
[371605183,1752365460012,-540.68701618,0.00021555,5]
[371605184,1752365460022,-1563.14,0.00021643,2]
[371605185,1752365460033,-1263.83,0.00021643,2]
[371605186,1752365460043,-730.78,0.00021643,2]
[371605187,1752365460059,-563.45,0.00021643,2]
[371605188,1752365460069,-682.9,0.00021643,2]
[371605189,1752365460079,-460.0,0.00021643,2]
[371605190,1752365460089,-1086.33,0.00021643,2]
[371605191,1752365460099,-560.77,0.00021643,2]
[371605192,1752365460109,-533.34,0.00021643,2]
[371605193,1752365460119,-153.076984,0.00021701,2]
[371605194,1752365460129,-407.0,0.00021822,2]
[371605195,1752365460140,-540.68701618,0.00021866,6]
[371605196,1752365460150,-548413.60250195,0.00021899,2]
[371605197,1752365460700,-282.72,0.00016438,2]
[371605198,1752365463405,-177.28,0.00016438,2]
[371605199,1752365463415,-460.0,0.00016438,2]
[371605200,1752365463425,-460.0,0.00016438,2]
[371605201,1752365463435,-460.0,0.00016712,2]
[371605202,1752365463444,-460.0,0.00016712,2]
[371605203,1752365463454,-460.0,0.00016986,2]
[371605204,1752365463463,-460.0,0.00016986,2]
[371605205,1752365463474,-460.0,0.0001726,2]
[371605206,1752365463484,-460.0,0.0001726,2]
[371605207,1752365463494,-460.0,0.00017534,2]
[371605208,1752365463503,-460.0,0.00017808,2]
[371605209,1752365463513,-460.0,0.00018082,2]
[371605210,1752365463523,-581.15,0.00018082,2]
[371605211,1752365463534,-130.22878977,0.00018356,2]
[371605212,1752365463550,-329.77121023,0.00018356,2]
[371605213,1752365463560,-460.0,0.0001863,2]
[371605214,1752365463570,-460.0,0.00018904,2]
[371605215,1752365463580,-274.92,0.00019178,2]
[371605216,1752365463589,-460.0,0.00019178,2]
[371605217,1752365463599,-460.0,0.00019452,2]
[371605218,1752365463609,-460.0,0.00019726,2]
[371605219,1752365463618,-460.0,0.0002,2]
[371605220,1752365463628,-460.0,0.00020273,2]
[371605221,1752365463637,-460.0,0.00020547,2]
[371605222,1752365463646,-460.0,0.00020821,2]
[371605223,1752365463656,-460.0,0.00021095,2]
[371605224,1752365463665,-460.0,0.00021369,2]
[371605225,1752365463674,-1277.934315,0.000214,2]
[371605226,1752365463684,-320.17,0.00021643,2]
[371605227,1752365463693,-7892.3324239,0.00021899,2]
[371605229,1752365578327,24900.0,0.00015675,2]
[371605230,1752365771388,2000.0,0.00025,50]
[371605231,1752365808097,200.0,0.00027397,120]
[371605232,1752365809671,3000.0,0.00023,30]
[371605233,1752365948637,2500.0,0.00023,30]
[371605234,1752365966308,2687.08,0.00024658,60]
[371605236,1752366239532,173.532219,0.00013699,2]
[371605548,1752366639889,-388.54404514,0.00016338,2]
[371605550,1752366639899,-460.0,0.00016438,2]
[371605552,1752366639909,-235.77009271,0.00016438,2]
[371606465,1752366649303,4720.2538601,0.00015914,2]
[371613466,1752367116249,477.0,0.00023,30]
[371613469,1752367313765,189.643835,0.00013699,2]
[371613473,1752367580269,183.92116599,0.00015945,2]
[371613531,1752367832114,-1200.0,0.00016437,2]
[371613532,1752367832124,-300.0,0.00016437,2]
[371613534,1752367832133,-1200.0,0.00016437,2]
[371613535,1752367832145,-460.0,0.00016438,2]
[371613536,1752367832154,-460.0,0.00016438,2]
[371613537,1752367832163,-514.87927659,0.00016438,2]
[371613538,1752367832172,-460.0,0.00016438,2]
[371613539,1752367832182,-460.0,0.00016438,2]
[371613540,1752367832190,-485.77594695,0.00016438,2]
[371613541,1752367832200,-408.70605106,0.00016438,2]
[371613542,1752367832212,-51.29394894,0.00016438,2]
[371613543,1752367832221,-360.70514603,0.00016438,2]
[371613544,1752367832230,-179.12910415,0.00016438,2]
[371613545,1752367832288,-280.87089585,0.00016438,2]
[371613546,1752367832295,-460.0,0.00016438,2]
[371613547,1752367832302,-460.0,0.00016438,2]
[371613548,1752367832309,-365.45447614,0.00016438,2]
[371613549,1752367832317,-460.0,0.00016438,2]
[371613550,1752367832324,-139.23343955,0.00016438,2]
[371613895,1752367843172,-320.76656045,0.00016438,2]
[371613897,1752367843181,-460.0,0.00016438,2]
[371613899,1752367843190,-460.0,0.00016438,2]
[371613901,1752367843200,-460.0,0.00016438,2]
[371613903,1752367843209,-460.0,0.00016438,2]
[371613904,1752367843219,-460.0,0.00016438,2]
[371613906,1752367843228,-460.0,0.00016438,2]
[371613908,1752367843237,-460.0,0.00016438,2]
[371613910,1752367843250,-460.0,0.00016438,2]
[371613912,1752367843259,-460.0,0.00016438,2]
[371613914,1752367843269,-460.0,0.00016438,2]
[371613916,1752367843279,-460.0,0.00016438,2]
[371613918,1752367843288,-460.0,0.00016438,2]
[371613920,1752367843298,-460.0,0.00016438,2]
[371613921,1752367843307,-460.0,0.00016438,2]
[371613923,1752367843317,-460.0,0.00016438,2]
[371613925,1752367843326,-272.59932452,0.00016438,2]
[371614145,1752367846246,-187.40067548,0.00016438,2]
[371614146,1752367846256,-84.29433579,0.00016438,2]
[371614148,1752367846268,-375.70566421,0.00016438,2]
[371614149,1752367846277,-460.0,0.00016438,2]
[371614150,1752367846286,-460.0,0.00016438,2]
[371614152,1752367846296,-460.0,0.00016438,2]
[371614154,1752367846306,-197.1884926,0.00016438,2]
[371615078,1752367901510,500.0,0.00022986,30]
[371630666,1752368376129,216.021268,0.00013699,2]
[371630670,1752368787332,2181.6409973,0.0001582,2]
[371630711,1752369032304,-431.07992254,0.00016338,2]
[371630713,1752369032314,-151.3681,0.00016428,2]
[371630715,1752369032323,-300.0,0.00016437,2]
[371630717,1752369032333,-1189.0,0.00016437,2]
[371630719,1752369032343,-214.90421517,0.00016438,2]
[371630721,1752369032352,-460.0,0.00016438,2]
[371630723,1752369032361,-460.0,0.00016438,2]
[371630725,1752369032371,-460.0,0.00016438,2]
[371630727,1752369032380,-460.0,0.00016438,2]
[371630729,1752369032390,-460.0,0.00016438,2]
[371630731,1752369032399,-460.0,0.00016438,2]
[371630733,1752369032409,-460.0,0.00016438,2]
[371630735,1752369032418,-460.0,0.00016438,2]
[371630737,1752369032427,-460.0,0.00016438,2]
[371630739,1752369032437,-460.0,0.00016438,2]
[371630741,1752369032446,-449.19648386,0.00016438,2]
[371630743,1752369032456,-460.0,0.00016438,2]
[371630745,1752369032466,-460.0,0.00016438,2]
[371630747,1752369032475,-460.0,0.00016438,2]
[371630749,1752369032484,-460.0,0.00016438,2]
[371630751,1752369032493,-460.0,0.00016438,2]
[371630753,1752369032503,-460.0,0.00016438,2]
[371630755,1752369032513,-460.0,0.00016438,2]
[371630757,1752369032522,-460.0,0.00016438,2]
[371630759,1752369032532,-471.90794522,0.00016438,2]
[371630761,1752369032541,-460.0,0.00016438,2]
[371630763,1752369032550,-460.0,0.00016438,2]
[371630764,1752369032560,-460.0,0.00016438,2]
[371630765,1752369032570,-466.50842922,0.00016438,2]
[371630766,1752369032579,-460.0,0.00016438,2]
[371630768,1752369032590,-460.0,0.00016438,2]
[371630769,1752369032599,-505.16750061,0.00016438,2]
[371630770,1752369032609,-460.0,0.00016438,2]
[371630771,1752369032618,-493.73287757,0.00016438,2]
[371630772,1752369032628,-522.63704269,0.00016438,2]
[371630773,1752369032637,-483.91735096,0.00016438,2]
[371630774,1752369032647,-460.0,0.00016438,2]
[371630775,1752369032656,-460.0,0.00016438,2]
[371630776,1752369032665,-460.0,0.00016438,2]
[371630777,1752369032675,-460.0,0.00016438,2]
[371630778,1752369032684,-460.0,0.00016438,2]
[371630779,1752369032693,-460.0,0.00016438,2]
[371630780,1752369032703,-295.25,0.00016438,2]
[371630781,1752369032712,-460.0,0.00016438,2]
[371630782,1752369032722,-460.0,0.00016438,2]
[371630783,1752369032872,-528.54,0.00016438,2]
[371630784,1752369032883,-460.0,0.00016438,2]
[371630785,1752369032892,-306.16609505,0.00016438,2]
[371630786,1752369032902,-460.0,0.00016438,2]
[371630787,1752369032912,-460.0,0.00016438,2]
[371630788,1752369032921,-460.0,0.00016438,2]
[371630789,1752369032931,-460.0,0.00016438,2]
[371630790,1752369032940,-460.0,0.00016438,2]
[371630791,1752369032949,-460.0,0.00016438,2]
[371630792,1752369032959,-460.0,0.00016438,2]
[371630793,1752369032969,-460.0,0.00016438,2]
[371630794,1752369032979,-460.0,0.00016438,2]
[371630795,1752369032989,-460.0,0.00016438,2]
[371630796,1752369032999,-460.0,0.00016438,2]
[371630797,1752369033009,-460.0,0.00016438,2]
[371630798,1752369033019,-460.0,0.00016438,2]
[371630799,1752369033030,-460.0,0.00016438,2]
[371630800,1752369033040,-460.0,0.00016438,2]
[371630801,1752369033051,-420.49326757,0.00016438,2]
[371630802,1752369033061,-460.0,0.00016438,2]
[371630803,1752369033071,-460.0,0.00016438,2]
[371630804,1752369033082,-183.23656308,0.00016438,2]
[371630805,1752369033095,-460.0,0.00016438,2]
[371630806,1752369033105,-460.0,0.00016438,2]
[371630807,1752369033116,-460.0,0.00016438,2]
[371630808,1752369033127,-460.0,0.00016438,2]
[371630809,1752369033141,-514.47,0.00016438,2]
[371630810,1752369033154,-460.0,0.00016438,2]
[371630811,1752369033170,-460.0,0.00016438,2]
[371630812,1752369033180,-460.0,0.00016438,2]
[371630813,1752369033190,-460.0,0.00016438,2]
[371630814,1752369033201,-460.0,0.00016438,2]
[371630815,1752369033211,-460.0,0.00016438,2]
[371630816,1752369033220,-460.0,0.00016438,2]
[371630817,1752369033230,-460.0,0.00016438,2]
[371630818,1752369033240,-363.30169389,0.00016438,2]
[371630819,1752369033250,-460.0,0.00016438,2]
[371630820,1752369033261,-460.0,0.00016438,2]
[371630821,1752369033271,-460.0,0.00016438,2]
[371630822,1752369033280,-460.0,0.00016438,2]
[371630823,1752369033290,-460.0,0.00016438,2]
[371630824,1752369033300,-460.0,0.00016438,2]
[371630825,1752369033310,-460.0,0.00016438,2]
[371630826,1752369033320,-460.0,0.00016438,2]
[371630827,1752369033330,-460.0,0.00016438,2]
[371630828,1752369033339,-310.86540029,0.00016438,2]
[371630829,1752369033350,-460.0,0.00016438,2]
[371630830,1752369033360,-460.0,0.00016438,2]
[371630831,1752369033370,-460.0,0.00016438,2]
[371630832,1752369033379,-460.0,0.00016438,2]
[371630833,1752369033389,-460.0,0.00016438,2]
[371630834,1752369033399,-460.0,0.00016438,2]
[371630835,1752369033409,-460.0,0.00016438,2]
[371630836,1752369033418,-460.0,0.00016438,2]
[371630837,1752369033428,-460.0,0.00016438,2]
[371630838,1752369033438,-460.0,0.00016438,2]
[371630839,1752369033449,-460.0,0.00016438,2]
[371630840,1752369033458,-460.0,0.00016438,2]
[371630841,1752369033469,-460.0,0.00016438,2]
[371630842,1752369033479,-460.0,0.00016438,2]
[371630843,1752369033490,-460.0,0.00016438,2]
[371630844,1752369033500,-460.0,0.00016438,2]
[371630845,1752369033510,-460.0,0.00016438,2]
[371630846,1752369033520,-460.0,0.00016438,2]
[371630847,1752369033529,-460.0,0.00016438,2]
[371630848,1752369033540,-460.0,0.00016438,2]
[371630849,1752369033550,-460.0,0.00016438,2]
[371630850,1752369033560,-460.0,0.00016438,2]
[371630851,1752369033570,-460.0,0.00016438,2]
[371630852,1752369033580,-460.0,0.00016438,2]
[371630853,1752369033591,-517.37,0.00016438,2]
[371630854,1752369033601,-460.0,0.00016438,2]
[371630855,1752369033611,-460.0,0.00016438,2]
[371630856,1752369033621,-460.0,0.00016438,2]
[371630857,1752369033630,-460.0,0.00016438,2]
[371630858,1752369033640,-460.0,0.00016438,2]
[371630859,1752369033650,-460.0,0.00016438,2]
[371630860,1752369033661,-460.0,0.00016438,2]
[371630861,1752369033674,-460.0,0.00016438,2]
[371630862,1752369033684,-460.0,0.00016438,2]
[371630863,1752369033695,-814.75,0.00016438,2]
[371630864,1752369033706,-460.0,0.00016438,2]
[371630865,1752369033716,-460.0,0.00016438,2]
[371630866,1752369033726,-460.0,0.00016438,2]
[371630867,1752369033736,-460.0,0.00016438,2]
[371630868,1752369033746,-460.0,0.00016438,2]
[371630869,1752369033756,-460.0,0.00016438,2]
[371630870,1752369033766,-460.0,0.00016438,2]
[371630871,1752369033777,-460.0,0.00016438,2]
[371630872,1752369033788,-460.0,0.00016438,2]
[371630873,1752369033802,-460.0,0.00016438,2]
[371630874,1752369033812,-460.0,0.00016438,2]
[371630875,1752369033822,-460.0,0.00016438,2]
[371630876,1752369033833,-548.09,0.00016438,2]
[371630877,1752369033845,-460.0,0.00016438,2]
[371630878,1752369033856,-460.0,0.00016438,2]
[371630879,1752369033866,-460.0,0.00016438,2]
[371630880,1752369033876,-500.0,0.00016438,2]
[371630881,1752369033887,-460.0,0.00016438,2]
[371630882,1752369033897,-947.87,0.00016438,2]
[371630883,1752369033908,-460.0,0.00016438,2]
[371630884,1752369033918,-460.0,0.00016438,2]
[371630885,1752369033928,-460.0,0.00016438,2]
[371630886,1752369033938,-831.88168592,0.00016438,2]
[371630887,1752369033948,-460.0,0.00016438,2]
[371630888,1752369033960,-460.0,0.00016438,2]
[371630889,1752369033970,-460.0,0.00016438,2]
[371630890,1752369033981,-460.0,0.00016438,2]
[371630891,1752369033992,-460.0,0.00016438,2]
[371630892,1752369034001,-460.0,0.00016438,2]
[371630893,1752369034012,-460.0,0.00016438,2]
[371630894,1752369034022,-460.0,0.00016438,2]
[371630895,1752369034031,-460.0,0.00016438,2]
[371630896,1752369034041,-460.0,0.00016438,2]
[371630897,1752369034052,-460.0,0.00016438,2]
[371630898,1752369034062,-460.0,0.00016438,2]
[371630899,1752369034072,-460.0,0.00016438,2]
[371630900,1752369034082,-460.0,0.00016438,2]
[371630901,1752369034093,-460.0,0.00016438,2]
[371630902,1752369034103,-460.0,0.00016438,2]
[371630903,1752369034114,-460.0,0.00016438,2]
[371630904,1752369034124,-460.0,0.00016438,2]
[371630905,1752369034134,-460.0,0.00016438,2]
[371630906,1752369034144,-460.0,0.00016438,2]
[371630907,1752369034154,-460.0,0.00016438,2]
[371630908,1752369034164,-460.0,0.00016438,2]
[371630909,1752369034174,-460.0,0.00016438,2]
[371630910,1752369034184,-460.0,0.00016438,2]
[371630911,1752369034194,-460.0,0.00016438,2]
[371630912,1752369034204,-460.0,0.00016438,2]
[371630913,1752369034214,-460.0,0.00016438,2]
[371630914,1752369034224,-460.0,0.00016438,2]
[371630915,1752369034234,-288.86034976,0.00016438,2]
[371630916,1752369034250,-171.13965024,0.00016438,2]
[371630917,1752369034259,-460.0,0.00016438,2]
[371630918,1752369034269,-460.0,0.00016438,2]
[371630919,1752369034279,-460.0,0.00016438,2]
[371630920,1752369034288,-384.19034976,0.00016438,2]
[371630921,1752369034300,-75.80965024,0.00016438,2]
[371630922,1752369034310,-512.17,0.00016438,2]
[371630923,1752369034319,-418.15683179,0.00016438,2]
[371630924,1752369034335,-41.84316821,0.00016438,2]
[371630925,1752369034347,-342.27360021,0.00016438,2]